bitfinex/quotes_SOLUSD_20241115
["timestamp","ask_amount","ask_price","bid_price","bid_amount"]
[1731667122486,20.0,213.53,213.47,7.31431353]
[1731667123384,7.31431353,213.52,213.45,19.02661353]
[1731667123594,7.31431353,213.52,213.45,7.31431353]
[1731667123893,27.31431353,213.53,213.46,7.31431353]
[1731667124696,4.6834,213.52,213.46,7.31431353]
[1731667125519,4.6834,213.52,213.43,11.7134]
[1731667125711,4.6834,213.52,213.46,7.31431353]
[1731667128509,7.31431353,213.5,213.42,21.3452]
[1731667128690,7.31431353,213.51,213.44,7.31431353]
[1731667128889,20.0,213.5,213.45,7.31431353]
[1731667129112,20.0,213.5,213.44,7.31431353]
[1731667129910,20.0,213.5,213.42,37.7446]
[1731667129911,27.31431353,213.5,213.43,7.31431353]
[1731667130100,27.31431353,213.48,213.41,7.31431353]
[1731667130412,7.31431353,213.47,213.4,7.31431353]
[1731667130626,11.99901353,213.46,213.39,7.31431353]
[1731667130795,27.31431353,213.45,213.38,7.31431353]
[1731667131407,7.31431353,213.43,213.36,7.31431353]
[1731667131918,7.31431353,213.43,213.34,16.4055]
[1731667132102,7.31431353,213.43,213.36,7.31431353]
[1731667132418,7.31431353,213.41,213.34,7.31431353]
[1731667133710,4.686,213.4,213.34,7.31431353]
[1731667133910,4.686,213.4,213.35,7.31431353]
[1731667136931,4.686,213.4,213.34,7.31431353]
[1731667138627,4.686,213.4,213.35,7.31431353]
[1731667139636,4.6858,213.42,213.37,7.31431353]
[1731667139801,4.6853,213.44,213.39,7.31431353]
[1731667140812,4.6853,213.44,213.38,7.31431353]
[1731667141224,24.6853,213.44,213.39,7.31431353]
[1731667141528,4.6844,213.48,213.43,7.31431353]
[1731667141827,27.05591353,213.49,213.42,7.31431353]
[1731667142214,7.31431353,213.48,213.41,7.31431353]
[1731667142431,7.31431353,213.47,213.4,7.31431353]
[1731667142834,7.31431353,213.47,213.38,16.4025]
[1731667142835,20.0,213.47,213.41,7.31431353]
[1731667143013,24.6846,213.47,213.41,7.31431353]
[1731667144332,31.99891353,213.47,213.39,7.31431353]
[1731667144935,7.31431353,213.46,213.39,7.31431353]
[1731667145142,20.0,213.44,213.38,7.31431353]
[1731667145438,27.31431353,213.44,213.36,7.31431353]
[1731667145639,7.31431353,213.43,213.36,7.31431353]
[1731667146356,20.0,213.44,213.36,7.31431353]
[1731667146357,7.31431353,213.44,213.36,7.31431353]
[1731667146647,20.0,213.43,213.37,7.31431353]
[1731667147014,4.6855,213.42,213.37,7.31431353]
[1731667149235,7.31431353,213.43,213.37,7.31431353]
[1731667149236,7.31431353,213.43,213.37,12.00091353]
[1731667149433,7.31431353,213.43,213.37,4.6866]
[1731667150339,11.99971353,213.43,213.37,4.6866]
[1731667150938,7.31431353,213.44,213.37,23.71761353]
[1731667151135,43.776884,213.44,213.38,12.00061353]
[1731667151738,6.1419,213.52,213.42,7.31431353]
[1731667152044,7.31431353,213.51,213.44,7.31431353]
[1731667152334,185.57981353,213.54,213.47,7.31431353]
[1731667152538,27.46281353,213.54,213.47,7.31431353]
[1731667152843,20.1485,213.54,213.48,7.31431353]
[1731667153139,10.8747,213.58,213.51,7.31431353]
[1731667153316,7.31431353,213.57,213.49,7.31431353]
[1731667153517,7.31431353,213.56,213.49,7.31431353]
[1731667154317,7.31431353,213.56,213.49,11.99821353]
[1731667154318,20.0,213.55,213.49,11.99821353]
[1731667154542,20.0,213.55,213.5,7.31431353]
[1731667154731,24.6825,213.56,213.5,7.31431353]
[1731667154934,36.09187905,213.56,213.49,16.09327905]
[1731667155441,20.0,213.54,213.48,11.40937905]
[1731667155936,11.40937905,213.57,213.49,11.40937905]
[1731667156145,15.9383,213.59,213.52,11.40937905]
[1731667156441,16.09117905,213.6,213.52,11.40937905]
[1731667156945,4.6818,213.6,213.53,11.40937905]
[1731667157142,11.40937905,213.6,213.53,11.40937905]
[1731667158041,11.40937905,213.61,213.53,16.09247905]
[1731667158273,0.12549,213.61,213.54,11.40937905]
[1731667158546,23.902374,213.61,213.54,11.40937905]
[1731667158752,20.0,213.6,213.54,11.40937905]
[1731667159240,36.09097905,213.6,213.53,11.40937905]
[1731667159442,36.09097905,213.6,213.52,11.40937905]
[1731667160042,36.09097905,213.6,213.53,11.40937905]
[1731667160232,36.09097905,213.6,213.53,16.09247905]
[1731667160654,36.09097905,213.6,213.53,4.6831]
[1731667161544,31.40937905,213.58,213.51,11.40937905]
[1731667161729,11.40937905,213.58,213.51,11.40937905]
[1731667162355,11.40937905,213.57,213.5,27.80227905]
[1731667162650,31.40937905,213.56,213.5,16.3929]
[1731667162947,11.40937905,213.56,213.5,16.3929]
[1731667163147,11.40937905,213.57,213.5,27.80227905]
[1731667163357,20.0,213.56,213.52,11.40937905]
[1731667164254,4.6823,213.57,213.52,11.40937905]
[1731667164950,4.6823,213.57,213.51,16.09277905]
[1731667165128,20.0,213.58,213.51,16.09277905]
[1731667165334,20.0,213.61,213.55,11.40937905]
[1731667165525,24.6816,213.61,213.55,11.40937905]
[1731667165725,36.09097905,213.61,213.54,11.40937905]
[1731667165958,16.09097905,213.61,213.54,11.40937905]
[1731667166862,11.40937905,213.58,213.51,27.80187905]
[1731667167733,31.40937905,213.57,213.51,16.3925]
[1731667168256,11.40937905,213.57,213.51,16.3925]
[1731667169346,16.09157905,213.58,213.51,27.80187905]
[1731667169547,4.6822,213.58,213.51,27.80187905]
[1731667169748,20.0,213.57,213.51,27.80187905]
[1731667170430,24.6823,213.57,213.51,27.80187905]
[1731667171534,36.09167905,213.57,213.51,16.3925]
[1731667171752,36.09167905,213.57,213.49,37.78037905]
[1731667172255,36.09167905,213.57,213.49,43.00767905]
[1731667173949,36.09167905,213.57,213.5,11.40937905]
[1731667174162,24.6823,213.57,213.51,11.40937905]
[1731667174863,24.6823,213.57,213.51,7.30142276]
[1731667175455,31.98372276,213.57,213.5,11.98502276]
[1731667175657,31.20379676,213.56,213.49,11.7099]
[1731667175960,7.30142276,213.55,213.49,11.7099]
[1731667176162,7.30142276,213.55,213.49,16.3939]
[1731667176653,7.30142276,213.53,213.47,4.6843]
[1731667177458,11.98462276,213.53,213.47,4.6843]
[1731667180462,11.98462276,213.53,213.46,7.30142276]
[1731667180667,11.98462276,213.53,213.45,11.7121]
[1731667180668,27.30142276,213.51,213.45,11.7121]
[1731667181352,7.30142276,213.5,213.43,7.30142276]
[1731667181560,7.30142276,213.49,213.42,11.98692276]
[1731667181935,31.20379676,213.48,213.41,11.7142]
[1731667182159,7.30142276,213.49,213.42,7.30142276]
[1731667182355,7.30142276,213.5,213.43,7.30142276]
[1731667182867,7.30142276,213.49,213.43,4.6852]
[1731667183863,0.12549,213.48,213.43,4.6852]
[1731667184066,7.30142276,213.46,213.37,11.7164]
[1731667184367,7.30142276,213.46,213.39,7.30142276]
[1731667185248,11.98632276,213.45,213.38,11.98782276]
[1731667187463,11.98632276,213.45,213.38,23.70392276]
[1731667188069,11.98632276,213.45,213.39,7.30142276]
[1731667188070,20.0,213.45,213.39,7.30142276]
[1731667189252,20.0,213.45,213.39,11.98752276]
[1731667191461,20.0,213.45,213.38,11.7161]
[1731667191462,7.30142276,213.43,213.38,11.7161]
[1731667192270,7.30142276,213.43,213.33,16.4275]
[1731667192457,7.30142276,213.43,213.36,7.30142276]
[1731667193452,7.30142276,213.43,213.37,4.6866]
[1731667193881,11.98672276,213.44,213.37,11.98802276]
[1731667194051,23.776884,213.43,213.38,7.30142276]
[1731667195283,20.0,213.46,213.4,7.30142276]
[1731667195471,4.684,213.5,213.44,7.30142276]
[1731667195817,7.30142276,213.51,213.38,4.6864]
[1731667195818,4.6836,213.51,213.45,7.30142276]
[1731667196573,162.8,213.5,213.45,7.30142276]
[1731667198253,7.30142276,213.49,213.43,4.6851]
[1731667198576,11.98542276,213.49,213.42,16.3989]
[1731667198878,11.98542276,213.49,213.42,23.70032276]
[1731667199371,4.6855,213.42,213.34,23.70702276]
[1731667199595,11.98692276,213.42,213.34,23.70702276]
[1731667200288,7.30142276,213.4,213.34,16.4056]
[1731667200965,7.30142276,213.42,213.35,7.30142276]
[1731667201167,23.776884,213.41,213.35,7.30142276]
[1731667201368,23.776884,213.41,213.34,23.70702276]
[1731667202781,35.20273662,213.41,213.34,27.83145262]
[1731667202972,39.88853662,213.41,213.34,27.83145262]
[1731667203591,20.0,213.42,213.36,11.42585262]
[1731667203801,20.0,213.42,213.37,11.42585262]
[1731667203972,20.0,213.42,213.36,11.42585262]
[1731667205994,36.11145262,213.42,213.35,16.11275262]
[1731667207082,11.42585262,213.41,213.34,23.14415262]
[1731667207486,11.42585262,213.39,213.32,16.11355262]
[1731667208985,40.01442662,213.4,213.33,11.42585262]
[1731667209293,28.588574,213.4,213.34,11.42585262]
[1731667209908,28.463084,213.4,213.34,11.42585262]
[1731667210092,20.0,213.4,213.36,11.42585262]
[1731667210497,20.0,213.4,213.3,11.7202]
[1731667210498,20.0,213.4,213.35,11.42585262]
[1731667210890,20.0,213.4,213.36,11.42585262]
[1731667213003,20.0,213.4,213.35,16.11285262]
[1731667213805,20.0,213.4,213.34,11.42585262]
[1731667214585,39.88853662,213.41,213.34,11.42585262]
[1731667214796,20.0,213.4,213.34,16.11295262]
[1731667215585,32.64095262,213.44,213.37,11.42585262]
[1731667215810,162.8,213.45,213.39,11.42585262]
[1731667215987,16.11075262,213.46,213.39,11.42585262]
[1731667215988,11.42585262,213.46,213.39,11.42585262]
[1731667216305,6.4367,213.48,213.34,16.4054]
[1731667216306,11.42585262,213.47,213.4,11.42585262]
[1731667216605,11.42585262,213.46,213.39,11.42585262]
[1731667216818,16.11055262,213.46,213.4,4.686]
[1731667217309,20.0,213.45,213.4,4.686]
[1731667217604,20.0,213.45,213.39,27.82755262]
[1731667218291,20.0,213.46,213.41,11.42585262]
[1731667218610,24.6845,213.47,213.41,11.42585262]
[1731667218992,36.11035262,213.47,213.4,11.42585262]
[1731667221214,23.902374,213.46,213.4,11.42585262]
[1731667221515,31.42585262,213.45,213.39,11.7155]
[1731667221692,20.0,213.45,213.39,23.14135262]
[1731667221893,20.0,213.46,213.4,11.42585262]
[1731667222314,20.0,213.46,213.36,16.5459]
[1731667222315,35.32822662,213.45,213.38,11.42585262]
[1731667222701,4.6851,213.44,213.38,11.42585262]
[1731667222896,35.32822662,213.43,213.36,11.42585262]
[1731667223098,31.42585262,213.42,213.35,11.7176]
[1731667223402,11.42585262,213.41,213.35,11.7176]
[1731667224615,16.11175262,213.41,213.35,11.7176]
[1731667224909,11.99882037,213.41,213.35,11.7176]
[1731667225115,20.0,213.42,213.36,7.31292037]
[1731667225419,24.6857,213.42,213.36,7.31292037]
[1731667226323,20.0,213.42,213.36,23.71702037]
[1731667226498,20.0,213.45,213.39,7.31292037]
[1731667227711,4.6851,213.44,213.39,7.31292037]
[1731667228916,4.6829,213.54,213.43,7.31292037]
[1731667229100,28.7589544,213.55,213.49,7.31292037]
[1731667229293,13.6453544,213.55,213.49,7.31292037]
[1731667229813,13.6453544,213.55,213.46,7.31292037]
[1731667229814,7.31292037,213.53,213.46,7.31292037]
[1731667230004,7.31292037,213.51,213.44,7.31292037]
[1731667230788,11.41544925,213.51,213.44,11.41544925]
[1731667231018,11.41544925,213.5,213.42,27.81434925]
[1731667231189,11.41544925,213.49,213.42,27.81434925]
[1731667231396,11.41544925,213.5,213.42,27.81434925]
[1731667231700,16.09934925,213.5,213.42,27.81434925]
[1731667231905,16.09934925,213.5,213.43,11.41544925]
[1731667232095,4.6839,213.5,213.44,11.41544925]
[1731667232287,20.0,213.5,213.46,11.41544925]
[1731667232493,167.483,213.54,213.48,11.41544925]
[1731667232725,167.483,213.54,213.42,16.3989]
[1731667232726,11.41544925,213.51,213.43,11.41544925]
[1731667233509,16.09924925,213.5,213.43,11.41544925]
[1731667233994,11.41544925,213.49,213.42,23.12884925]
[1731667234699,11.41544925,213.47,213.4,10.9025]
[1731667235011,0.12549,213.49,213.38,11.716]
[1731667235012,11.41544925,213.44,213.38,11.716]
[1731667235600,16.10074925,213.44,213.38,11.716]
[1731667236093,24.6853,213.44,213.38,23.13144925]
[1731667236294,20.0,213.44,213.39,11.41544925]
[1731667237232,24.6849,213.45,213.39,11.41544925]
[1731667238025,11.41544925,213.44,213.38,11.716]
[1731667238631,31.41544925,213.42,213.35,16.10244925]
[1731667238924,11.41544925,213.39,213.32,16.10304925]
[1731667239294,20.0,213.42,213.3,18.1663]
[1731667239295,11.41544925,213.37,213.3,23.13584925]
[1731667239712,4.6867,213.37,213.31,11.41544925]
[1731667240212,24.6867,213.37,213.31,11.41544925]
[1731667240418,24.6867,213.37,213.33,11.41544925]
[1731667240419,20.0,213.37,213.33,11.41544925]
[1731667240607,24.6864,213.39,213.33,11.41544925]
[1731667240997,31.41544925,213.37,213.3,16.4086]
[1731667241201,31.41544925,213.37,213.3,27.82404925]
[1731667241202,11.41544925,213.37,213.3,27.82404925]
[1731667241519,36.10214925,213.37,213.3,11.7204]
[1731667241714,36.10214925,213.37,213.3,23.13584925]
[1731667243104,36.10214925,213.37,213.3,27.82404925]
[1731667245418,36.10214925,213.37,213.3,16.4086]
[1731667248008,16.10254925,213.35,213.28,16.10394925]
[1731667248502,16.10254925,213.35,213.26,11.7227]
[1731667248503,11.41544925,213.32,213.26,16.4118]
[1731667248716,11.41544925,213.29,213.22,27.83014925]
[1731667250104,16.10364925,213.3,213.23,11.41544925]
[1731667250608,16.10364925,213.3,213.22,16.4147]
[1731667250609,26.79704925,213.34,213.26,11.41544925]
[1731667251130,20.0,213.32,213.26,11.41544925]
[1731667251812,36.10324925,213.32,213.25,4.6893]
[1731667252012,36.10324925,213.32,213.25,16.10474925]
[1731667252416,24.6878,213.32,213.26,11.41544925]
[1731667253114,23.776884,213.31,213.25,11.41544925]
[1731667253318,23.776884,213.31,213.24,16.10474925]
[1731667253629,35.19233325,213.31,213.24,16.10474925]
[1731667254219,24.6882,213.3,213.24,16.10474925]
[1731667256637,24.6882,213.3,213.24,11.41544925]
[1731667256818,24.6882,213.3,213.23,16.10504925]
[1731667256819,36.10364925,213.3,213.23,16.10504925]
[1731667257140,35.19233325,213.29,213.23,4.6896]
[1731667258042,39.88083325,213.29,213.22,23.14034925]
[1731667258222,20.0,213.28,213.22,23.14034925]
[1731667258837,20.0,213.28,213.22,27.83024925]
[1731667259640,20.0,213.28,213.22,23.14034925]
[1731667259839,20.0,213.28,213.22,27.83024925]
[1731667260232,20.0,213.28,213.23,11.41544925]
[1731667260429,11.41544925,213.3,213.22,16.4148]
[1731667260430,20.0,213.3,213.25,11.41544925]
[1731667260929,20.0,213.3,213.24,7.31919431]
[1731667261439,27.31919431,213.3,213.23,7.31919431]
[1731667261619,32.00749431,213.3,213.23,12.00879431]
[1731667262442,31.09607831,213.29,213.23,7.31919431]
[1731667262822,7.31919431,213.26,213.18,16.4174]
[1731667263036,7.31919431,213.26,213.19,7.31919431]
[1731667263435,7.31919431,213.25,213.19,7.31919431]
[1731667264115,7.31919431,213.25,213.18,23.73659431]
[1731667264433,7.31919431,213.25,213.19,7.31919431]
[1731667265042,11.44279885,213.25,213.19,11.44279885]
[1731667265244,16.13219885,213.25,213.19,11.44279885]
[1731667265538,16.13219885,213.25,213.18,16.4174]
[1731667265539,23.776884,213.24,213.18,23.16959885]
[1731667265741,35.21968285,213.24,213.18,11.7268]
[1731667266129,31.44279885,213.23,213.16,11.44279885]
[1731667266319,31.44279885,213.23,213.15,6.5467]
[1731667266320,11.44279885,213.22,213.15,11.44279885]
[1731667266513,11.44279885,213.21,213.14,23.17199885]
[1731667266713,11.44279885,213.21,213.15,11.44279885]
[1731667267537,16.13309885,213.21,213.15,11.44279885]
[1731667268343,11.44279885,213.19,213.12,16.13479885]
[1731667268744,20.0,213.18,213.12,11.44279885]
[1731667269120,20.0,213.18,213.11,4.6923]
[1731667269121,23.776884,213.17,213.11,11.44279885]
[1731667269330,11.44279885,213.14,213.07,4.6931]
[1731667269656,48.468584,213.15,213.07,4.6931]
[1731667269657,39.91138285,213.15,213.09,11.44279885]
[1731667269817,20.0,213.15,213.11,11.44279885]
[1731667270023,15.4087,213.16,213.11,11.44279885]
[1731667270323,20.1,213.16,213.1,11.44279885]
[1731667270738,15.4087,213.16,213.12,11.44279885]
[1731667270931,15.4087,213.16,213.11,11.44279885]
[1731667271246,4.6905,213.2,213.14,11.44279885]
[1731667271545,15.2805,213.21,213.17,11.44279885]
[1731667271842,16.13259885,213.23,213.17,11.44279885]
[1731667271843,4.6898,213.23,213.17,11.44279885]
[1731667272041,4.6893,213.25,213.2,11.44279885]
[1731667272347,19.9697,213.26,213.2,11.44279885]
[1731667272540,19.9697,213.26,213.21,11.44279885]
[1731667273639,20.0,213.25,213.21,11.44279885]
[1731667274053,81.7205,213.31,213.21,11.44279885]
[1731667274054,11.44279885,213.32,213.24,11.44279885]
[1731667274250,11.44279885,213.29,213.22,11.44279885]
[1731667274548,11.44279885,213.26,213.21,11.7255]
[1731667274749,11.44279885,213.26,213.19,11.44279885]
[1731667275352,11.44279885,213.25,213.18,6.13349885]
[1731667275652,20.0,213.24,213.18,6.13349885]
[1731667275854,20.0,213.24,213.17,11.44279885]
[1731667275855,31.44279885,213.24,213.17,11.44279885]
[1731667276042,31.44279885,213.24,213.16,11.7278]
[1731667276043,20.0,213.22,213.16,23.17059885]
[1731667276347,31.44279885,213.22,213.16,11.7278]
[1731667277042,20.0,213.22,213.16,23.17059885]
[1731667277643,20.0,213.22,213.17,11.44279885]
[1731667278457,24.6901,213.22,213.16,23.17059885]
[1731667280242,20.0,213.2,213.15,11.44279885]
[1731667280641,20.0,213.2,213.14,11.44279885]
[1731667280947,20.0,213.2,213.15,11.44279885]
[1731667282938,11.44279885,213.24,213.18,11.44279885]
[1731667283251,4.6894,213.25,213.21,11.44279885]
[1731667283746,4.6894,213.25,213.14,16.421]
[1731667283747,16.0353,213.28,213.24,11.44279885]
[1731667283958,4.6886,213.29,213.24,11.44279885]
[1731667284336,4.6881,213.31,213.26,11.44279885]
[1731667284536,4.6881,213.31,213.27,11.44279885]
[1731667284741,0.12549,213.3,213.24,11.44279885]
[1731667285048,0.12549,213.28,213.23,11.44279885]
[1731667285634,4.6884,213.29,213.23,11.44279885]
[1731667285954,23.776884,213.28,213.23,11.44279885]
[1731667286341,20.0,213.27,213.24,11.44279885]
[1731667286536,23.776884,213.28,213.19,16.4172]
[1731667286537,4.6882,213.31,213.25,11.44279885]
[1731667286744,24.6882,213.31,213.25,11.44279885]
[1731667287133,4.6882,213.31,213.17,23.4554]
[1731667287339,4.6882,213.31,213.26,11.44279885]
[1731667287553,4.6882,213.31,213.27,11.44279885]
[1731667287759,20.6538,213.33,213.3,11.44279885]
[1731667287957,20.6538,213.33,213.29,11.44279885]
[1731667288135,20.6538,213.33,213.28,11.44279885]
[1731667289053,43.776884,213.32,213.28,11.44279885]
[1731667289758,43.776884,213.32,213.27,11.44279885]
[1731667289956,43.776884,213.32,213.25,11.44279885]
[1731667290161,11.44279885,213.31,213.24,11.44279885]
[1731667290463,11.44279885,213.31,213.23,23.16699885]
[1731667290661,20.0,213.3,213.23,23.16699885]
[1731667290963,24.6883,213.3,213.24,11.44279885]
[1731667292035,24.6883,213.3,213.25,11.44279885]
[1731667292243,4.6883,213.3,213.25,11.44279885]
[1731667293068,4.6883,213.3,213.26,11.44279885]
[1731667293567,23.902374,213.29,213.24,11.44279885]
[1731667293879,20.0,213.28,213.22,11.44279885]
[1731667294050,20.0,213.28,213.21,11.7251]
[1731667294051,31.44279885,213.28,213.21,23.16789885]
[1731667294353,20.0,213.21,213.11,26.9838]
[1731667294542,31.44279885,213.21,213.14,11.44279885]
[1731667294735,31.44279885,213.21,213.16,11.44279885]
[1731667294736,20.0,213.21,213.16,11.44279885]
[1731667294941,20.0,213.24,213.19,11.44279885]
[1731667295864,24.6895,213.24,213.19,11.44279885]
[1731667296543,23.776884,213.25,213.21,11.44279885]
[1731667296750,180.50549885,213.31,213.24,11.44279885]
[1731667296951,180.50549885,213.31,213.25,11.44279885]
[1731667296952,6.2627,213.31,213.25,11.44279885]
[1731667297140,17.70549885,213.31,213.24,11.44279885]
[1731667297339,17.70549885,213.31,213.23,11.44279885]
[1731667297658,4.6886,213.29,213.23,11.44279885]
[1731667298241,24.6886,213.29,213.23,11.44279885]
[1731667298764,4.6886,213.29,213.24,11.44279885]
[1731667299150,20.0,213.31,213.26,11.44279885]
[1731667299351,20.0,213.3,213.26,11.44279885]
[1731667299657,4.6879,213.32,213.28,11.44279885]
[1731667300164,4.6879,213.32,213.27,11.44279885]
[1731667300461,4.6879,213.32,213.2,11.44279885]
[1731667300462,4.6879,213.32,213.26,11.44279885]
[1731667301250,24.6879,213.32,213.26,11.44279885]
[1731667301565,4.6879,213.32,213.28,11.44279885]
[1731667302655,24.6879,213.32,213.28,11.44279885]
[1731667303243,24.6879,213.32,213.27,11.44279885]
[1731667304039,20.0,213.32,213.28,11.44279885]
[1731667304247,20.2363,213.38,213.31,11.44279885]
[1731667304562,4.686,213.4,213.35,11.44279885]
[1731667305272,4.686,213.4,213.34,11.44279885]
[1731667305891,4.686,213.4,213.35,11.44279885]
[1731667306068,4.6857,213.42,213.38,11.44279885]
[1731667306361,20.2352,213.43,213.38,11.44279885]
[1731667307262,20.2352,213.43,213.37,11.44279885]
[1731667307657,20.0,213.42,213.37,11.44279885]
[1731667307971,24.6857,213.42,213.37,11.44279885]
[1731667308965,24.6857,213.42,213.36,11.44279885]
[1731667309665,20.0,213.4,213.34,11.44279885]
[1731667309854,20.0,213.4,213.35,11.44279885]
[1731667310060,24.6861,213.4,213.35,11.44279885]
[1731667311353,20.0,213.38,213.32,11.44279885]
[1731667311745,20.0,213.38,213.31,11.44279885]
[1731667311746,20.0,213.36,213.31,11.44279885]
[1731667311942,20.0,213.36,213.3,11.44279885]
[1731667312571,4.6871,213.35,213.3,11.44279885]
[1731667312885,20.0,213.36,213.32,11.44279885]
[1731667313463,20.0,213.36,213.33,11.44279885]
[1731667313776,24.6859,213.41,213.35,11.44279885]
[1731667313954,24.6859,213.41,213.29,16.4094]
[1731667314160,4.6859,213.41,213.37,11.44279885]
[1731667314758,4.6859,213.41,213.36,11.44279885]
[1731667314962,4.6859,213.41,213.35,11.44279885]
[1731667315177,0.12549,213.4,213.34,11.44279885]
[1731667315379,11.44279885,213.39,213.32,11.44279885]
[1731667315908,43.776884,213.38,213.33,11.44279885]
[1731667316282,20.0,213.38,213.34,11.44279885]
[1731667316581,4.6866,213.37,213.34,11.44279885]
[1731667316887,4.6866,213.37,213.33,11.44279885]
[1731667317469,4.6864,213.39,213.35,11.44279885]
[1731667317668,4.6864,213.39,213.36,11.44279885]
[1731667317879,4.6864,213.39,213.33,11.44279885]
[1731667318063,20.0,213.38,213.32,11.44279885]
[1731667318391,31.44279885,213.38,213.31,11.44279885]
[1731667318766,4.6866,213.37,213.32,11.44279885]
[1731667321286,4.6866,213.37,213.31,11.44279885]
[1731667321780,20.0,213.35,213.29,11.44279885]
[1731667322391,20.0,213.35,213.31,11.44279885]
[1731667323083,20.0,213.35,213.29,11.44279885]
[1731667323462,4.6873,213.34,213.29,11.44279885]
[1731667323669,4.6873,213.34,213.3,11.44279885]
[1731667325069,4.6873,213.34,213.27,11.7222]
[1731667325280,4.6873,213.34,213.29,11.44279885]
[1731667325789,4.6873,213.34,213.28,11.44279885]
[1731667326084,16.13009885,213.34,213.27,11.44279885]
[1731667326285,20.0,213.35,213.32,11.44279885]
[1731667326671,4.6869,213.36,213.24,0.12549]
[1731667326866,4.6869,213.36,213.31,11.44279885]
[1731667328175,24.81169,213.39,213.33,11.44279885]
[1731667328591,36.25448885,213.39,213.32,11.44279885]
[1731667328899,24.6862,213.39,213.33,11.44279885]
[1731667329063,4.6862,213.39,213.36,11.44279885]
[1731667329266,4.6855,213.42,213.36,11.44279885]
[1731667329480,0.12549,213.41,213.35,11.44279885]
[1731667330374,4.686,213.4,213.35,11.44279885]
[1731667330577,4.686,213.4,213.36,11.44279885]
[1731667330917,24.6857,213.42,213.38,11.44279885]
[1731667331092,4.6857,213.42,213.38,11.44279885]
[1731667331474,4.6853,213.44,213.4,11.44279885]
[1731667332290,4.6853,213.44,213.41,11.44279885]
[1731667332595,4.80989,213.47,213.41,11.44279885]
[1731667332797,20.12549,213.45,213.41,11.44279885]
[1731667333395,4.6851,213.44,213.4,11.44279885]
[1731667333574,21.2071,213.48,213.43,11.44279885]
[1731667333777,21.2071,213.48,213.44,11.44279885]
[1731667333981,21.2071,213.48,213.43,11.44279885]
[1731667334388,21.2071,213.48,213.42,11.44279885]
[1731667334981,4.6844,213.48,213.42,11.44279885]
[1731667335482,4.6844,213.48,213.43,11.44279885]
[1731667335886,4.6844,213.48,213.44,11.44279885]
[1731667336582,4.6841,213.49,213.44,11.44279885]
[1731667338206,24.6841,213.49,213.43,11.44279885]
[1731667339090,24.6841,213.49,213.41,11.7145]
[1731667339091,4.6841,213.49,213.44,11.44279885]
[1731667340508,4.6841,213.49,213.42,11.44279885]
[1731667340796,31.44279885,213.48,213.41,23.15729885]
[1731667340976,31.44279885,213.48,213.41,11.7145]
[1731667341375,4.6841,213.49,213.38,11.44279885]
[1731667341376,11.44279885,213.45,213.38,11.44279885]
[1731667341577,31.44279885,213.42,213.36,16.4035]
[1731667342688,16.12839885,213.42,213.36,11.7167]
[1731667343287,11.44279885,213.41,213.34,16.13009885]
[1731667343509,20.0,213.4,213.34,16.13009885]
[1731667343707,20.0,213.4,213.34,27.84839885]
[1731667343922,20.0,213.42,213.36,11.44279885]
[1731667344084,4.6853,213.44,213.39,11.44279885]
[1731667344285,4.6853,213.44,213.4,11.44279885]
[1731667344497,20.4337,213.46,213.42,11.44279885]
[1731667346392,20.4337,213.46,213.41,11.44279885]
[1731667346993,24.6843,213.48,213.42,11.44279885]
[1731667347192,24.6843,213.48,213.44,11.44279885]
[1731667347193,20.0,213.48,213.44,11.44279885]
[1731667347490,6.6149,213.5,213.44,11.44279885]
[1731667347890,18.05769885,213.5,213.43,11.44279885]
[1731667348312,18.05769885,213.5,213.4,11.44279885]
[1731667348313,11.44279885,213.48,213.4,11.44279885]
[1731667348890,31.44279885,213.47,213.4,11.44279885]
[1731667349213,35.34517285,213.46,213.39,11.44279885]
[1731667349396,4.6849,213.45,213.39,11.44279885]
[1731667349817,11.44279885,213.4,213.33,11.44279885]
[1731667349991,11.44279885,213.39,213.32,11.44279885]
[1731667350197,0.12549,213.43,213.31,27.179]
[1731667350198,11.44279885,213.38,213.31,16.13069885]
[1731667350504,11.44279885,213.37,213.31,11.72]
[1731667350711,11.44279885,213.37,213.29,11.44279885]
[1731667351019,11.44279885,213.35,213.28,11.44279885]
[1731667351196,11.44279885,213.36,213.29,11.44279885]
[1731667351819,11.44279885,213.35,213.28,16.13119885]
[1731667351993,16.12979885,213.36,213.29,11.44279885]
[1731667352192,4.687,213.36,213.3,11.44279885]